[Event "*** Titled Tuesday 3|2 Blitz"]
[Site "Chess.com"]
[Date "2016.02.02"]
[Round "9"]
[White "GianmarcoVaR"]
[Black "LADIESGET2KNOWME"]
[Result "0-1"]
[WhiteElo "2239"]
[BlackElo "2313"]
[TimeControl "180+2"]
[EndTime "12:56:07 PST"]
[Termination "LADIESGET2KNOWME won by resignation"]

1. d4 {[%clk 0:03:01.9]} 1... Nf6 {[%clk 0:03:00.6]} 2. Bg5 {[%clk 0:02:57.5]}
2... Ne4 {[%clk 0:03:01.1]} 3. Bf4 {[%clk 0:02:58.5]} 3... c5 {[%clk 0:03:02.3]}
4. d5 {[%clk 0:02:56]} 4... e6 {[%clk 0:02:59.5]} 5. f3 {[%clk 0:02:54.6]} 5...
Qa5+ {[%clk 0:03:00.2]} 6. c3 {[%clk 0:02:54.1]} 6... Nf6 {[%clk 0:03:00.1]} 7.
e4 {[%clk 0:02:52.3]} 7... exd5 {[%clk 0:02:59.7]} 8. exd5 {[%clk 0:02:53.3]}
8... d6 {[%clk 0:03:00.9]} 9. Na3 {[%clk 0:02:52.4]} 9... Be7 {[%clk 0:03:01.1]}
10. Nc4 {[%clk 0:02:50.6]} 10... Qc7 {[%clk 0:03:01.7]} 11. a4 {[%clk
0:02:50.6]} 11... O-O {[%clk 0:03:02]} 12. Ne2 {[%clk 0:02:33.7]} 12... Re8
{[%clk 0:03:01.5]} 13. Ng3 {[%clk 0:02:32.6]} 13... Bf8+ {[%clk 0:02:58.1]} 14.
Be2 {[%clk 0:02:32.9]} 14... Nbd7 {[%clk 0:02:52.7]} 15. O-O {[%clk 0:02:31.4]}
15... Rb8 {[%clk 0:02:43.4]} 16. a5 {[%clk 0:01:57.1]} 16... b5 {[%clk
0:02:42.9]} 17. axb6 {[%clk 0:01:58.2]} 17... axb6 {[%clk 0:02:37.8]} 18. Na3
{[%clk 0:01:52.7]} 18... Ne5 {[%clk 0:02:31.7]} 19. Bb5 {[%clk 0:01:38.9]} 19...
Bd7 {[%clk 0:02:30.4]} 20. Re1 {[%clk 0:01:39.9]} 20... c4 {[%clk 0:02:29.7]}
21. Bxe5 {[%clk 0:01:26.9]} 21... dxe5 {[%clk 0:02:22.9]} 22. Ne4 {[%clk
0:01:27.3]} 22... Nxe4 {[%clk 0:02:19.5]} 0-1

[Event "*** Titled Tuesday 3|2 Blitz"]
[Site "Chess.com"]
[Date "2016.02.02"]
[Round "9"]
[White "the_drake"]
[Black "Hafez_Bakr"]
[Result "1-0"]
[WhiteElo "2009"]
[BlackElo "1750"]
[TimeControl "180+2"]
[EndTime "12:56:17 PST"]
[Termination "the_drake won by resignation"]

1. e4 {[%clk 0:03:01.9]} 1... c5 {[%clk 0:02:57.9]} 2. Nf3 {[%clk 0:02:52.3]}
2... d6 {[%clk 0:02:58.7]} 3. d4 {[%clk 0:02:48.2]} 3... cxd4 {[%clk 0:03:00.6]}
4. Nxd4 {[%clk 0:02:50.1]} 4... Nf6 {[%clk 0:03:02.5]} 5. Nc3 {[%clk 0:02:50.3]}
5... a6 {[%clk 0:03:04.4]} 6. Be3 {[%clk 0:02:50]} 6... e5 {[%clk 0:03:05.1]} 7.
Nf3 {[%clk 0:02:50.1]} 7... Be7 {[%clk 0:03:06]} 8. Ke2 {[%clk 0:02:50.5]} 8...
h6 {[%clk 0:03:07.2]} 9. Ke1 {[%clk 0:02:51.1]} 9... Be6 {[%clk 0:03:07.1]} 10.
Bd3 {[%clk 0:02:48.6]} 10... Nc6 {[%clk 0:03:07.3]} 11. Ke2 {[%clk 0:02:48.6]}
11... Nb4 {[%clk 0:03:05.9]} 12. Re1 {[%clk 0:02:48.8]} 12... Nxd3 {[%clk
0:03:03.1]} 13. cxd3 {[%clk 0:02:50]} 13... Rc8 {[%clk 0:03:02.5]} 14. Kf1
{[%clk 0:02:51]} 14... b5 {[%clk 0:02:59.8]} 15. d4 {[%clk 0:02:52.3]} 15...
Bc4+ {[%clk 0:02:40.1]} 16. Kg1 {[%clk 0:02:53]} 16... b4 {[%clk 0:02:40.4]} 17.
dxe5 {[%clk 0:02:53.3]} 17... dxe5 {[%clk 0:02:38.2]} 18. Nd5 {[%clk 0:02:46.9]}
18... Nxd5 {[%clk 0:02:29.9]} 19. exd5 {[%clk 0:02:44.2]} 19... Bf6 {[%clk
0:02:28.5]} 20. Qa4+ {[%clk 0:02:39.3]} 20... Bb5 {[%clk 0:02:22.7]} 21. Qxb4
{[%clk 0:02:40]} 21... Qxd5 {[%clk 0:02:21.4]} 22. Rad1 {[%clk 0:02:35.8]} 22...
Qe6 {[%clk 0:02:17.9]} 23. Bc5 {[%clk 0:02:33.5]} 23... Rc6 {[%clk 0:02:08]} 24.
a4 {[%clk 0:02:32.3]} 24... Bc4 {[%clk 0:02:00.1]} 25. Qb8+ {[%clk 0:02:31.1]}
25... Rc8 {[%clk 0:02:00.5]} 26. Qb4 {[%clk 0:02:24.6]} 26... Bd5 {[%clk
0:01:51.2]} 27. Nxe5 {[%clk 0:02:20.5]} 27... Bxe5 {[%clk 0:01:50.3]} 28. Rxe5
{[%clk 0:02:22.4]} 28... Qxe5 {[%clk 0:01:49.5]} 29. Re1 {[%clk 0:02:23.7]}
29... Be4 {[%clk 0:01:48.7]} 30. Rxe4 {[%clk 0:02:22.2]} 1-0

[Event "*** Titled Tuesday 3|2 Blitz"]
[Site "Chess.com"]
[Date "2016.02.02"]
[Round "9"]
[White "AndrewMcStone"]
[Black "RamonManon0g"]
[Result "0-1"]
[WhiteElo "1997"]
[BlackElo "2114"]
[TimeControl "180+2"]
[EndTime "12:57:45 PST"]
[Termination "RamonManon0g won by resignation"]

1. d4 {[%clk 0:03:01.9]} 1... e5 {[%clk 0:02:59.9]} 2. dxe5 {[%clk 0:02:59.3]}
2... Nc6 {[%clk 0:02:55.6]} 3. Nf3 {[%clk 0:02:59.1]} 3... Qe7 {[%clk
0:02:56.6]} 4. Qd5 {[%clk 0:02:39]} 4... f6 {[%clk 0:02:56.4]} 5. exf6 {[%clk
0:02:36.9]} 5... Nxf6 {[%clk 0:02:58.3]} 6. Qb3 {[%clk 0:02:38.2]} 6... d5
{[%clk 0:02:59.8]} 7. e3 {[%clk 0:02:32.1]} 7... Qb4+ {[%clk 0:02:49]} 8. Bd2
{[%clk 0:02:18.3]} 8... Qxb3 {[%clk 0:02:47.9]} 9. axb3 {[%clk 0:02:17.9]} 9...
Bf5 {[%clk 0:02:49.8]} 10. Bd3 {[%clk 0:02:09.5]} 10... Ne4 {[%clk 0:02:42.7]}
11. O-O {[%clk 0:02:03.5]} 11... Bd6 {[%clk 0:02:41.2]} 12. Rd1 {[%clk
0:01:38.2]} 12... O-O {[%clk 0:02:41.5]} 13. Be1 {[%clk 0:01:37.9]} 13... Bg4
{[%clk 0:02:39.4]} 14. Be2 {[%clk 0:01:36]} 14... Ne5 {[%clk 0:02:23.7]} 15.
Rxd5 {[%clk 0:01:22.1]} 15... Nxf3+ {[%clk 0:02:19.3]} 16. gxf3 {[%clk
0:01:22.2]} 16... Bxf3 {[%clk 0:02:20.4]} 17. Bxf3 {[%clk 0:01:23]} 17... Rxf3
{[%clk 0:02:22.3]} 18. Nd2 {[%clk 0:01:03.8]} 18... Nxd2 {[%clk 0:02:12.9]} 19.
Rxd2 {[%clk 0:01:04.1]} 19... a6 {[%clk 0:02:13.6]} 20. Kg2 {[%clk 0:00:56.1]}
20... Raf8 {[%clk 0:02:13.4]} 21. Ra4 {[%clk 0:00:54.9]} 21... R3f6 {[%clk
0:02:09.7]} 22. f4 {[%clk 0:00:48.5]} 22... Rg6+ {[%clk 0:02:10.4]} 23. Kf3
{[%clk 0:00:46.8]} 23... Rg1 {[%clk 0:02:09.2]} 24. Bg3 {[%clk 0:00:46.1]} 24...
g5 {[%clk 0:02:09.2]} 25. Re4 {[%clk 0:00:35.9]} 25... h5 {[%clk 0:02:07.4]} 26.
Rf2 {[%clk 0:00:19]} 26... h4 {[%clk 0:02:07.4]} 27. Re6 {[%clk 0:00:16.4]}
27... hxg3 {[%clk 0:02:07.5]} 28. Rg6+ {[%clk 0:00:17]} 28... Kh7 {[%clk
0:02:07.6]} 29. Rxg5 {[%clk 0:00:18]} 29... gxf2 {[%clk 0:02:07.9]} 0-1

[Event "*** Titled Tuesday 3|2 Blitz"]
[Site "Chess.com"]
[Date "2016.02.02"]
[Round "9"]
[White "DanielRensch"]
[Black "MateusViageiro"]
[Result "0-1"]
[WhiteElo "2315"]
[BlackElo "2184"]
[TimeControl "180+2"]
[EndTime "12:58:11 PST"]
[Termination "MateusViageiro won by resignation"]

1. e4 {[%clk 0:03:01.9]} 1... c5 {[%clk 0:02:42.9]} 2. Nf3 {[%clk 0:02:58.7]}
2... d6 {[%clk 0:02:42.8]} 3. d4 {[%clk 0:02:59.3]} 3... cxd4 {[%clk 0:02:43.6]}
4. Nxd4 {[%clk 0:03:01.2]} 4... Nf6 {[%clk 0:02:44.4]} 5. Nc3 {[%clk 0:03:01.7]}
5... a6 {[%clk 0:02:45.1]} 6. Be3 {[%clk 0:03:02.2]} 6... Ng4 {[%clk 0:02:45.3]}
7. Bg5 {[%clk 0:03:02.6]} 7... h6 {[%clk 0:02:45.6]} 8. Bh4 {[%clk 0:03:03.6]}
8... g5 {[%clk 0:02:46.5]} 9. Bg3 {[%clk 0:03:04.7]} 9... Bg7 {[%clk 0:02:47.9]}
10. Qd2 {[%clk 0:03:05.8]} 10... Nc6 {[%clk 0:02:47.3]} 11. Nf5 {[%clk
0:03:06.4]} 11... Bxf5 {[%clk 0:02:43.2]} 12. exf5 {[%clk 0:03:08.3]} 12... Qa5
{[%clk 0:02:42.2]} 13. h3 {[%clk 0:03:01]} 13... Nge5 {[%clk 0:02:30.1]} 14. Nd5
{[%clk 0:03:01]} 14... Qxd2+ {[%clk 0:02:14]} 15. Kxd2 {[%clk 0:03:02.9]} 15...
Rc8 {[%clk 0:02:12.5]} 16. f6 {[%clk 0:03:01.6]} 16... Bxf6 {[%clk 0:02:10.7]}
17. Nxf6+ {[%clk 0:03:02.4]} 17... exf6 {[%clk 0:02:11.3]} 18. c3 {[%clk
0:03:03.8]} 18... Na5 {[%clk 0:02:07.1]} 19. Kc2 {[%clk 0:03:03.4]} 19... Ke7
{[%clk 0:02:06.3]} 20. f4 {[%clk 0:03:00.6]} 20... Ng6 {[%clk 0:01:52.7]} 21.
Re1+ {[%clk 0:03:00.7]} 21... Kd7 {[%clk 0:01:51.1]} 22. Bd3 {[%clk 0:03:01.2]}
22... Rce8 {[%clk 0:01:47.8]} 23. Rhf1 {[%clk 0:02:17.1]} 23... Rxe1 {[%clk
0:01:46.2]} 24. Rxe1 {[%clk 0:02:18.2]} 24... gxf4 {[%clk 0:01:45.1]} 25. Bf2
{[%clk 0:02:11.1]} 25... Nc6 {[%clk 0:01:44]} 26. Bb6 {[%clk 0:02:09.8]} 26...
Nce5 {[%clk 0:01:43]} 27. Bf5+ {[%clk 0:02:10.5]} 27... Kc6 {[%clk 0:01:42.6]}
28. Bd4 {[%clk 0:02:11.6]} 28... b5 {[%clk 0:01:35.3]} 29. a4 {[%clk 0:02:10.3]}
29... Nh4 {[%clk 0:01:29.5]} 30. axb5+ {[%clk 0:01:55.3]} 30... axb5 {[%clk
0:01:28.9]} 31. Be4+ {[%clk 0:01:51.8]} 31... d5 {[%clk 0:01:28.3]} 32. Bd3
{[%clk 0:01:48.8]} 32... Nxg2 {[%clk 0:01:26.5]} 33. Rf1 {[%clk 0:01:50]} 33...
f3 {[%clk 0:01:18.1]} 34. Bxe5 {[%clk 0:01:43.2]} 34... fxe5 {[%clk 0:01:18.7]}
35. Rxf3 {[%clk 0:01:44.8]} 35... Ne1+ {[%clk 0:01:18.2]} 0-1

[Event "*** Titled Tuesday 3|2 Blitz"]
[Site "Chess.com"]
[Date "2016.02.02"]
[Round "9"]
[White "igorkovalenko"]
[Black "BillieKimbah"]
[Result "0-1"]
[WhiteElo "2549"]
[BlackElo "2473"]
[TimeControl "180+2"]
[EndTime "12:58:45 PST"]
[Termination "BillieKimbah won on time"]

1. d4 {[%clk 0:02:54.7]} 1... d5 {[%clk 0:03:01.1]} 2. c4 {[%clk 0:02:55.3]}
2... c6 {[%clk 0:03:02.1]} 3. Nc3 {[%clk 0:02:56.3]} 3... Nf6 {[%clk 0:03:02.7]}
4. e3 {[%clk 0:02:56.3]} 4... Bf5 {[%clk 0:03:03.3]} 5. Nf3 {[%clk 0:02:56.4]}
5... e6 {[%clk 0:03:03.9]} 6. Bd3 {[%clk 0:02:55.2]} 6... Bg6 {[%clk 0:03:04.5]}
7. O-O {[%clk 0:02:55.8]} 7... Nbd7 {[%clk 0:03:05]} 8. Rb1 {[%clk 0:02:53.5]}
8... Bd6 {[%clk 0:03:05.3]} 9. c5 {[%clk 0:02:51.3]} 9... Bc7 {[%clk 0:03:05.3]}
10. b4 {[%clk 0:02:53.2]} 10... a6 {[%clk 0:03:00.5]} 11. Re1 {[%clk 0:02:52.3]}
11... O-O {[%clk 0:02:41.8]} 12. a4 {[%clk 0:02:52.7]} 12... e5 {[%clk
0:02:41.8]} 13. Bxg6 {[%clk 0:02:53.4]} 13... hxg6 {[%clk 0:02:42.6]} 14. b5
{[%clk 0:02:54.7]} 14... axb5 {[%clk 0:02:42.8]} 15. axb5 {[%clk 0:02:56.6]}
15... e4 {[%clk 0:02:41.7]} 16. Nd2 {[%clk 0:02:57.5]} 16... Re8 {[%clk
0:02:36.5]} 17. Nf1 {[%clk 0:02:57.9]} 17... Nf8 {[%clk 0:02:36]} 18. Bd2 {[%clk
0:02:52.2]} 18... Qd7 {[%clk 0:02:35.6]} 19. Ra1 {[%clk 0:02:44.9]} 19... Ne6
{[%clk 0:02:29.3]} 20. Qb3 {[%clk 0:02:41.8]} 20... Ng5 {[%clk 0:02:07.1]} 21.
Rxa8 {[%clk 0:02:38.6]} 21... Rxa8 {[%clk 0:02:07.2]} 22. b6 {[%clk 0:02:35.9]}
22... Bb8 {[%clk 0:02:01.4]} 23. Rb1 {[%clk 0:02:35.7]} 23... Nf3+ {[%clk
0:01:50.5]} 24. Kh1 {[%clk 0:02:34.4]} 24... Ng4 {[%clk 0:01:43.8]} 25. gxf3
{[%clk 0:01:28.8]} 25... exf3 {[%clk 0:01:44.4]} 26. Kg1 {[%clk 0:01:29.5]}
26... Nxh2 {[%clk 0:01:36.2]} 27. Nxh2 {[%clk 0:01:25]} 27... Bxh2+ {[%clk
0:01:29.4]} 28. Kf1 {[%clk 0:01:22.5]} 28... Qg4 {[%clk 0:01:30.1]} 29. Ne2
{[%clk 0:01:21.6]} 29... Qg2+ {[%clk 0:01:23.6]} 0-1

[Event "*** Titled Tuesday 3|2 Blitz"]
[Site "Chess.com"]
[Date "2016.02.02"]
[Round "9"]
[White "stepanosinovsky"]
[Black "alturas_pacificas"]
[Result "1-0"]
[WhiteElo "2281"]
[BlackElo "2036"]
[TimeControl "180+2"]
[EndTime "12:58:48 PST"]
[Termination "stepanosinovsky won by checkmate"]

1. e4 {[%clk 0:03:01.9]} 1... e5 {[%clk 0:02:59.7]} 2. Nf3 {[%clk 0:03:00.3]}
2... Nf6 {[%clk 0:02:58.7]} 3. Nc3 {[%clk 0:02:56.3]} 3... Nc6 {[%clk
0:02:58.3]} 4. Bb5 {[%clk 0:02:56.4]} 4... Bb4 {[%clk 0:02:58.1]} 5. O-O {[%clk
0:02:56.8]} 5... d6 {[%clk 0:02:55.4]} 6. d3 {[%clk 0:02:45.2]} 6... h6 {[%clk
0:02:52.7]} 7. Ne2 {[%clk 0:02:36.2]} 7... O-O {[%clk 0:02:49.8]} 8. Bxc6 {[%clk
0:02:35.6]} 8... bxc6 {[%clk 0:02:50.4]} 9. Ng3 {[%clk 0:02:35.4]} 9... Bc5
{[%clk 0:02:38.7]} 10. Kh1 {[%clk 0:02:27.6]} 10... Ng4 {[%clk 0:02:25.3]} 11.
Qe2 {[%clk 0:02:18]} 11... Be6 {[%clk 0:01:28.2]} 12. h3 {[%clk 0:02:16.2]}
12... Nf6 {[%clk 0:01:29.7]} 13. Nh4 {[%clk 0:02:08.2]} 13... Qd7 {[%clk
0:01:13.4]} 14. f4 {[%clk 0:01:28.7]} 14... exf4 {[%clk 0:01:00.3]} 15. Bxf4
{[%clk 0:01:25.4]} 15... g5 {[%clk 0:00:48]} 16. Bxg5 {[%clk 0:00:33.6]} 16...
hxg5 {[%clk 0:00:47.7]} 17. Rxf6 {[%clk 0:00:32.9]} 17... Bd4 {[%clk 0:00:39.9]}
18. Nh5 {[%clk 0:00:32.6]} 18... gxh4 {[%clk 0:00:38.8]} 19. Qd2 {[%clk
0:00:30.8]} 19... Bxf6 {[%clk 0:00:17.4]} 20. Nxf6+ {[%clk 0:00:30.9]} 20... Kg7
{[%clk 0:00:19]} 21. Qg5+ {[%clk 0:00:31.3]} 21... Kh8 {[%clk 0:00:18.9]} 22.
Qh6# {[%clk 0:00:32.3]} 1-0

[Event "*** Titled Tuesday 3|2 Blitz"]
[Site "Chess.com"]
[Date "2016.02.02"]
[Round "9"]
[White "arnacman"]
[Black "kpio91"]
[Result "0-1"]
[WhiteElo "2250"]
[BlackElo "2497"]
[TimeControl "180+2"]
[EndTime "12:58:59 PST"]
[Termination "kpio91 won by checkmate"]

1. e4 {[%clk 0:03:01.9]} 1... e5 {[%clk 0:03:00.9]} 2. Nc3 {[%clk 0:03:01.9]}
2... Nc6 {[%clk 0:02:56.5]} 3. g3 {[%clk 0:03:01.6]} 3... Bc5 {[%clk 0:02:54.3]}
4. Bg2 {[%clk 0:03:02]} 4... Nge7 {[%clk 0:02:53]} 5. Nge2 {[%clk 0:03:00.8]}
5... d6 {[%clk 0:02:54.1]} 6. Na4 {[%clk 0:03:00.7]} 6... Bg4 {[%clk 0:02:50.5]}
7. c3 {[%clk 0:02:47.6]} 7... Qd7 {[%clk 0:02:47.2]} 8. Nxc5 {[%clk 0:02:47.7]}
8... dxc5 {[%clk 0:02:47.9]} 9. h3 {[%clk 0:02:45.1]} 9... Be6 {[%clk
0:02:46.6]} 10. Qc2 {[%clk 0:01:38.2]} 10... O-O-O {[%clk 0:02:34.6]} 11. a3
{[%clk 0:01:37.4]} 11... c4 {[%clk 0:02:28.2]} 12. f4 {[%clk 0:01:27.7]} 12...
f6 {[%clk 0:02:24.8]} 13. f5 {[%clk 0:01:27]} 13... Bf7 {[%clk 0:02:24.2]} 14.
O-O {[%clk 0:01:27.8]} 14... Na5 {[%clk 0:02:20.1]} 15. Rb1 {[%clk 0:01:18.7]}
15... Nb3 {[%clk 0:02:20.3]} 16. Kh2 {[%clk 0:01:15.4]} 16... Nc6 {[%clk
0:02:09.2]} 17. Ng1 {[%clk 0:01:15.5]} 17... Nca5 {[%clk 0:02:09.4]} 18. Rf2
{[%clk 0:01:14.8]} 18... Nc5 {[%clk 0:02:10.2]} 19. d4 {[%clk 0:00:59.3]} 19...
cxd3 {[%clk 0:02:05.9]} 20. Qd1 {[%clk 0:00:59.3]} 20... Ncb3 {[%clk 0:02:02.7]}
21. Be3 {[%clk 0:00:59.1]} 21... Nc4 {[%clk 0:02:01.3]} 22. Bxa7 {[%clk
0:00:50]} 22... Qa4 {[%clk 0:01:50.7]} 23. Rf3 {[%clk 0:00:40.4]} 23... Ncd2
{[%clk 0:01:48.7]} 24. Be3 {[%clk 0:00:33.6]} 24... Nxb1 {[%clk 0:01:45.8]} 25.
Qxb1 {[%clk 0:00:33.4]} 25... d2 {[%clk 0:01:46.7]} 26. Rf1 {[%clk 0:00:30.5]}
26... Na5 {[%clk 0:01:29.6]} 27. Bf3 {[%clk 0:00:28.8]} 27... Bb3 {[%clk
0:01:29.8]} 28. Bd1 {[%clk 0:00:24.4]} 28... Nc4 {[%clk 0:01:30.7]} 29. Bf2
{[%clk 0:00:20.7]} 29... Bxd1 {[%clk 0:01:30.7]} 30. Rxd1 {[%clk 0:00:20.9]}
30... Nxb2 {[%clk 0:01:31.5]} 31. Qxb2 {[%clk 0:00:16.2]} 31... Qxd1 {[%clk
0:01:32.2]} 32. Qb5 {[%clk 0:00:13.5]} 32... Qxg1+ {[%clk 0:01:23.3]} 33. Bxg1
{[%clk 0:00:13.5]} 33... d1=Q {[%clk 0:01:23.9]} 34. h4 {[%clk 0:00:12.8]} 34...
Rd2+ {[%clk 0:01:22.1]} 35. Kh3 {[%clk 0:00:13.8]} 35... h5 {[%clk 0:01:23]} 36.
Qc5 {[%clk 0:00:12]} 36... Qg4# {[%clk 0:01:23.2]} 0-1

[Event "*** Titled Tuesday 3|2 Blitz"]
[Site "Chess.com"]
[Date "2016.02.02"]
[Round "9"]
[White "ZEN-22"]
[Black "E-Shaposhnikov"]
[Result "1-0"]
[WhiteElo "2364"]
[BlackElo "2482"]
[TimeControl "180+2"]
[EndTime "12:59:09 PST"]
[Termination "ZEN-22 won by resignation"]

1. d3 {[%clk 0:03:01.9]} 1... c5 {[%clk 0:02:58.1]} 2. g3 {[%clk 0:02:43.1]}
2... Nc6 {[%clk 0:02:58.3]} 3. Bg2 {[%clk 0:02:44.1]} 3... g6 {[%clk 0:02:59.8]}
4. Nf3 {[%clk 0:02:45.3]} 4... Bg7 {[%clk 0:03:01.3]} 5. e4 {[%clk 0:02:47.2]}
5... Nf6 {[%clk 0:03:01.4]} 6. O-O {[%clk 0:02:47.9]} 6... d5 {[%clk 0:03:02.6]}
7. c3 {[%clk 0:02:49.8]} 7... dxe4 {[%clk 0:03:02.6]} 8. dxe4 {[%clk 0:02:49.7]}
8... Qxd1 {[%clk 0:03:03.4]} 9. Rxd1 {[%clk 0:02:51.6]} 9... Nxe4 {[%clk
0:03:04.5]} 10. Re1 {[%clk 0:02:50.6]} 10... Nf6 {[%clk 0:03:02.8]} 11. Be3
{[%clk 0:02:51.4]} 11... Nd7 {[%clk 0:02:48.4]} 12. Ng5 {[%clk 0:02:51]} 12...
O-O {[%clk 0:02:42.9]} 13. Ne4 {[%clk 0:02:50.9]} 13... c4 {[%clk 0:02:38.2]}
14. Na3 {[%clk 0:02:50.8]} 14... Nde5 {[%clk 0:02:37.5]} 15. Nc5 {[%clk
0:02:46.5]} 15... Nd3 {[%clk 0:01:55.8]} 16. Nxd3 {[%clk 0:02:40.7]} 16... cxd3
{[%clk 0:01:56.5]} 17. Rad1 {[%clk 0:02:29.8]} 17... Bf5 {[%clk 0:01:56.9]} 18.
Bc5 {[%clk 0:02:07.8]} 18... Rac8 {[%clk 0:01:40.3]} 19. Bxe7 {[%clk 0:02:07.5]}
19... Rfe8 {[%clk 0:01:35.4]} 20. Bg5 {[%clk 0:02:04.7]} 20... Ne5 {[%clk
0:01:07.8]} 21. Nb5 {[%clk 0:02:02]} 21... Bg4 {[%clk 0:01:00.3]} 22. Nd6 {[%clk
0:01:55.3]} 22... Bxd1 {[%clk 0:01:00.6]} 23. Rxd1 {[%clk 0:01:56.1]} 23... Nc4
{[%clk 0:00:58.2]} 24. Nxe8 {[%clk 0:01:44.2]} 24... Nxb2 {[%clk 0:00:44.3]} 25.
Rb1 {[%clk 0:01:42.5]} 25... Rxe8 {[%clk 0:00:40]} 26. Rxb2 {[%clk 0:01:43.1]}
26... Re1+ {[%clk 0:00:40.8]} 27. Bf1 {[%clk 0:01:43.7]} 27... Bxc3 {[%clk
0:00:40.5]} 28. Rxb7 {[%clk 0:01:44.4]} 28... d2 {[%clk 0:00:34.1]} 29. Bxd2
{[%clk 0:01:44.6]} 29... Bxd2 {[%clk 0:00:35.2]} 30. Rxa7 {[%clk 0:01:46.3]}
30... Rb1 {[%clk 0:00:32]} 31. Kg2 {[%clk 0:01:46.5]} 31... f5 {[%clk
0:00:22.1]} 32. Bc4+ {[%clk 0:01:45.5]} 32... Kh8 {[%clk 0:00:23.7]} 33. h4
{[%clk 0:01:37.7]} 33... Rb2 {[%clk 0:00:23.3]} 34. Kh3 {[%clk 0:01:30.9]} 34...
Be1 {[%clk 0:00:21]} 35. f3 {[%clk 0:01:31.3]} 35... Rf2 {[%clk 0:00:16.6]} 36.
Bd5 {[%clk 0:01:31.3]} 36... Rd2 {[%clk 0:00:17.5]} 37. Rd7 {[%clk 0:01:31.2]}
37... Bf2 {[%clk 0:00:18]} 38. g4 {[%clk 0:01:31.9]} 38... f4 {[%clk 0:00:15.8]}
39. g5 {[%clk 0:01:32.6]} 39... Bg3 {[%clk 0:00:15.4]} 40. Rd8+ {[%clk
0:01:33.3]} 1-0

[Event "*** Titled Tuesday 3|2 Blitz"]
[Site "Chess.com"]
[Date "2016.02.02"]
[Round "9"]
[White "Journey_to_GrandMaster_YT"]
[Black "ethylalcohol"]
[Result "1-0"]
[WhiteElo "2242"]
[BlackElo "1734"]
[TimeControl "180+2"]
[EndTime "12:59:23 PST"]
[Termination "Journey_to_GrandMaster_YT won on time"]

1. d4 {[%clk 0:03:00]} 1... f5 {[%clk 0:02:45.5]} 2. e4 {[%clk 0:02:59.6]} 2...
fxe4 {[%clk 0:02:41.7]} 3. Nc3 {[%clk 0:03:00.4]} 3... Nf6 {[%clk 0:02:38.6]} 4.
Bg5 {[%clk 0:03:00.4]} 4... c6 {[%clk 0:02:25.6]} 5. Bxf6 {[%clk 0:02:53.6]}
5... exf6 {[%clk 0:02:25]} 6. Nxe4 {[%clk 0:02:53.4]} 6... d5 {[%clk 0:02:25.5]}
7. Ng3 {[%clk 0:02:51.8]} 7... Bd6 {[%clk 0:02:22]} 8. Bd3 {[%clk 0:02:50.7]}
8... Qe7+ {[%clk 0:01:27.1]} 9. N1e2 {[%clk 0:02:49.7]} 9... O-O {[%clk
0:01:22.9]} 10. O-O {[%clk 0:02:50]} 10... Bg4 {[%clk 0:01:19.7]} 11. Re1 {[%clk
0:02:42.1]} 11... Re8 {[%clk 0:01:16]} 12. Qd2 {[%clk 0:02:42.1]} 12... Nd7
{[%clk 0:01:11.2]} 13. c4 {[%clk 0:02:42]} 13... Bb4 {[%clk 0:01:03.6]} 14. Nc3
{[%clk 0:02:40.6]} 14... Qf7 {[%clk 0:01:02.9]} 15. cxd5 {[%clk 0:02:39.4]}
15... cxd5 {[%clk 0:01:02.8]} 16. Qf4 {[%clk 0:02:36.2]} 16... Be6 {[%clk
0:00:41.3]} 17. h4 {[%clk 0:02:31.6]} 17... Nf8 {[%clk 0:00:33.5]} 18. h5 {[%clk
0:02:29.9]} 18... Rac8 {[%clk 0:00:29.5]} 19. Rac1 {[%clk 0:02:25.8]} 19... Bd7
{[%clk 0:00:23.9]} 20. h6 {[%clk 0:02:07]} 20... g6 {[%clk 0:00:20.6]} 21. Qf3
{[%clk 0:02:00.5]} 21... Rxe1+ {[%clk 0:00:18.2]} 22. Rxe1 {[%clk 0:02:00.2]}
22... Bxc3 {[%clk 0:00:18.4]} 23. bxc3 {[%clk 0:02:00.7]} 23... Re8 {[%clk
0:00:11.5]} 24. Rxe8 {[%clk 0:01:58.4]} 24... Bxe8 {[%clk 0:00:12]} 25. Ne2
{[%clk 0:01:59.4]} 25... Bc6 {[%clk 0:00:10.1]} 26. Nf4 {[%clk 0:01:59.1]} 26...
Ne6 {[%clk 0:00:10]} 27. Nxe6 {[%clk 0:01:36.9]} 27... Qxe6 {[%clk 0:00:10.8]}
28. Qf4 {[%clk 0:01:34.4]} 28... Qe7 {[%clk 0:00:10.7]} 29. Qb8+ {[%clk
0:01:33.4]} 29... Kf7 {[%clk 0:00:10.1]} 30. Qh8 {[%clk 0:01:31.1]} 30... Ke6
{[%clk 0:00:11]} 31. Qg8+ {[%clk 0:01:24.4]} 31... Qf7 {[%clk 0:00:08.3]} 32.
Qc8+ {[%clk 0:01:14.1]} 32... Qd7 {[%clk 0:00:05.8]} 33. Qxd7+ {[%clk
0:01:12.1]} 33... Bxd7 {[%clk 0:00:02.4]} 34. Bxg6 {[%clk 0:01:12.3]} 1-0